[Event "*** SCC Grand Prix: Titled Tuesday Blitz"]
[Site "Chess.com"]
[Date "2020.06.09"]
[Round "7"]
[White "ChessQueen"]
[Black "Semetey"]
[Result "0-1"]
[WhiteElo "2659"]
[BlackElo "2540"]
[TimeControl "180+1"]
[EndTime "10:18:17 PDT"]
[Termination "Semetey won by resignation"]

1. e4 {[%clk 0:03:00.9]} 1... g6 {[%clk 0:02:57.1]} 2. d4 {[%clk 0:03:00.2]}
2... Bg7 {[%clk 0:02:56.9]} 3. Nc3 {[%clk 0:03:00.7]} 3... c6 {[%clk 0:02:57.4]}
4. Bc4 {[%clk 0:02:59.7]} 4... d6 {[%clk 0:02:57]} 5. Nf3 {[%clk 0:02:56.5]}
5... Nf6 {[%clk 0:02:56.7]} 6. O-O {[%clk 0:02:44.6]} 6... d5 {[%clk 0:02:39.2]}
7. exd5 {[%clk 0:02:36.9]} 7... cxd5 {[%clk 0:02:40.1]} 8. Bb5+ {[%clk
0:02:36.9]} 8... Bd7 {[%clk 0:02:40.3]} 9. Be2 {[%clk 0:02:35]} 9... Bg4 {[%clk
0:02:32.2]} 10. Ne5 {[%clk 0:02:31.1]} 10... Bxe2 {[%clk 0:02:29.4]} 11. Qxe2
{[%clk 0:02:32]} 11... O-O {[%clk 0:02:28.6]} 12. f4 {[%clk 0:02:25.4]} 12...
Nc6 {[%clk 0:02:26.7]} 13. Be3 {[%clk 0:02:21.6]} 13... e6 {[%clk 0:02:26.1]}
14. a3 {[%clk 0:02:16]} 14... Rc8 {[%clk 0:02:19]} 15. Rf3 {[%clk 0:02:06]}
15... Qb6 {[%clk 0:02:15.8]} 16. Na4 {[%clk 0:02:01.3]} 16... Nxd4 {[%clk
0:02:12.7]} 17. Nxb6 {[%clk 0:01:53.5]} 17... Nxe2+ {[%clk 0:02:12.2]} 18. Kf2
{[%clk 0:01:53.4]} 18... axb6 {[%clk 0:02:11.7]} 19. Kxe2 {[%clk 0:01:52.2]}
19... Rxc2+ {[%clk 0:02:11.3]} 20. Kf1 {[%clk 0:01:52]} 20... Rxb2 {[%clk
0:02:06.8]} 21. Bd4 {[%clk 0:01:51.1]} 21... Rc2 {[%clk 0:02:01.9]} 22. Bxb6
{[%clk 0:01:48.8]} 22... Ne4 {[%clk 0:01:59.8]} 23. Rd3 {[%clk 0:01:38.6]} 23...
Rfc8 {[%clk 0:01:55.1]} 24. Be3 {[%clk 0:01:33.8]} 24... Rb2 {[%clk 0:01:42.3]}
25. Bd4 {[%clk 0:01:28]} 25... Rd2 {[%clk 0:01:36.6]} 26. Rd1 {[%clk 0:01:24.3]}
26... Rcc2 {[%clk 0:01:33.8]} 27. R1xd2 {[%clk 0:01:10.6]} 27... Nxd2+ {[%clk
0:01:26.3]} 28. Ke1 {[%clk 0:01:04.2]} 28... Nc4 {[%clk 0:01:16.2]} 29. Rb3
{[%clk 0:01:02.1]} 29... f6 {[%clk 0:00:53.7]} 30. Nd7 {[%clk 0:00:54.3]} 30...
e5 {[%clk 0:00:52.1]} 31. fxe5 {[%clk 0:00:54.2]} 31... fxe5 {[%clk 0:00:53]}
32. Bf2 {[%clk 0:00:43.1]} 32... d4 {[%clk 0:00:50.9]} 33. Rxb7 {[%clk 0:00:42]}
33... d3 {[%clk 0:00:50.6]} 34. Bc5 {[%clk 0:00:14.9]} 34... d2+ {[%clk
0:00:40.4]} 35. Ke2 {[%clk 0:00:13.9]} 35... Rc1 {[%clk 0:00:40.1]} 0-1

[Event "*** SCC Grand Prix: Titled Tuesday Blitz"]
[Site "Chess.com"]
[Date "2020.06.09"]
[Round "7"]
[White "Maksimus1998"]
[Black "Kopytkin"]
[Result "0-1"]
[WhiteElo "2499"]
[BlackElo "2345"]
[TimeControl "180+1"]
[EndTime "10:18:18 PDT"]
[Termination "Kopytkin won by resignation"]

1. e4 {[%clk 0:03:00.9]} 1... Nf6 {[%clk 0:03:00.1]} 2. e5 {[%clk 0:02:59.8]}
2... Nd5 {[%clk 0:03:00.2]} 3. Nc3 {[%clk 0:02:58.1]} 3... Nxc3 {[%clk
0:02:59.4]} 4. dxc3 {[%clk 0:02:58.4]} 4... d5 {[%clk 0:03:00]} 5. c4 {[%clk
0:02:56.6]} 5... Be6 {[%clk 0:02:37.2]} 6. cxd5 {[%clk 0:02:56.1]} 6... Qxd5
{[%clk 0:02:36.4]} 7. Qxd5 {[%clk 0:02:55]} 7... Bxd5 {[%clk 0:02:37.3]} 8. c4
{[%clk 0:02:53.6]} 8... Bc6 {[%clk 0:02:34.9]} 9. f4 {[%clk 0:02:51.5]} 9... e6
{[%clk 0:02:33.1]} 10. Be3 {[%clk 0:02:51]} 10... Nd7 {[%clk 0:02:32.7]} 11. Kf2
{[%clk 0:02:50.8]} 11... Nc5 {[%clk 0:02:29]} 12. Nf3 {[%clk 0:02:46.8]} 12...
Ne4+ {[%clk 0:02:21.6]} 13. Ke1 {[%clk 0:02:46.6]} 13... Bb4+ {[%clk 0:02:19.4]}
14. Kd1 {[%clk 0:02:43.6]} 14... O-O-O+ {[%clk 0:02:06.7]} 15. Kc2 {[%clk
0:02:43.5]} 15... Bc5 {[%clk 0:01:38.3]} 16. Bxc5 {[%clk 0:02:42.6]} 16... Nxc5
{[%clk 0:01:37.8]} 17. Ng5 {[%clk 0:02:41]} 17... Rd7 {[%clk 0:01:31.2]} 18. Rd1
{[%clk 0:02:34.6]} 18... Rhd8 {[%clk 0:01:24.5]} 19. Rxd7 {[%clk 0:02:34.2]}
19... Rxd7 {[%clk 0:01:24.3]} 20. Be2 {[%clk 0:02:28.6]} 20... h6 {[%clk
0:01:23.1]} 21. Nf3 {[%clk 0:02:28.5]} 21... Be4+ {[%clk 0:01:15.5]} 22. Kc3
{[%clk 0:02:11.6]} 22... Na4+ {[%clk 0:01:08.3]} 23. Kb3 {[%clk 0:02:10.8]}
23... Nc5+ {[%clk 0:01:07.7]} 24. Kc3 {[%clk 0:02:03.3]} 24... Na4+ {[%clk
0:01:07.5]} 25. Kb3 {[%clk 0:01:59.7]} 25... Nc5+ {[%clk 0:01:07.5]} 26. Ka3
{[%clk 0:02:00.4]} 26... Nd3 {[%clk 0:00:52.3]} 27. g3 {[%clk 0:01:52.2]} 27...
Bxf3 {[%clk 0:00:43.9]} 28. Bxf3 {[%clk 0:01:51.4]} 28... Nf2 {[%clk 0:00:44.1]}
29. Bxb7+ {[%clk 0:01:40.5]} 29... Kxb7 {[%clk 0:00:42.9]} 30. Rf1 {[%clk
0:01:41.4]} 30... Ng4 {[%clk 0:00:28.6]} 31. h3 {[%clk 0:01:37.9]} 31... Ne3
{[%clk 0:00:28.6]} 32. Rc1 {[%clk 0:01:37.4]} 32... c5 {[%clk 0:00:27.7]} 33. b4
{[%clk 0:01:36.9]} 33... Rd3+ {[%clk 0:00:24.5]} 34. Ka4 {[%clk 0:01:36.7]}
34... cxb4 {[%clk 0:00:20.1]} 35. Kxb4 {[%clk 0:01:37.6]} 35... Kc6 {[%clk
0:00:20.1]} 36. a4 {[%clk 0:01:32.4]} 36... Nf5 {[%clk 0:00:17.3]} 37. g4 {[%clk
0:01:32.4]} 37... Nd4 {[%clk 0:00:16.6]} 38. a5 {[%clk 0:01:29.6]} 38... Rb3+
{[%clk 0:00:15.6]} 39. Ka4 {[%clk 0:01:30]} 39... Kc5 {[%clk 0:00:15.8]} 40. Rd1
{[%clk 0:01:28.8]} 40... Rb7 {[%clk 0:00:15.3]} 41. a6 {[%clk 0:01:28.2]} 41...
Rc7 {[%clk 0:00:14.6]} 42. Rb1 {[%clk 0:01:26.7]} 42... Nc6 {[%clk 0:00:13.9]}
43. Rc1 {[%clk 0:01:22.5]} 43... Rd7 {[%clk 0:00:13.7]} 44. Rb1 {[%clk
0:01:21.4]} 44... Rd4 {[%clk 0:00:13.6]} 45. Rb7 {[%clk 0:01:20.8]} 45... Rxc4+
{[%clk 0:00:13.3]} 46. Ka3 {[%clk 0:01:21.3]} 46... Rxf4 {[%clk 0:00:13]} 47.
Kb3 {[%clk 0:01:17.5]} 47... g6 {[%clk 0:00:12.8]} 48. Kc3 {[%clk 0:01:17.7]}
48... h5 {[%clk 0:00:13.2]} 49. gxh5 {[%clk 0:01:17.3]} 49... gxh5 {[%clk
0:00:13.6]} 50. Rc7 {[%clk 0:01:17.9]} 50... Kd5 {[%clk 0:00:13.3]} 51. Rd7+
{[%clk 0:01:17.8]} 51... Kxe5 {[%clk 0:00:13.2]} 52. Rc7 {[%clk 0:01:18.7]}
52... Kd5 {[%clk 0:00:13.3]} 0-1

[Event "*** SCC Grand Prix: Titled Tuesday Blitz"]
[Site "Chess.com"]
[Date "2020.06.09"]
[Round "7"]
[White "ehrenfeld"]
[Black "kleopl"]
[Result "0-1"]
[WhiteElo "2493"]
[BlackElo "2361"]
[TimeControl "180+1"]
[EndTime "10:18:19 PDT"]
[Termination "kleopl won on time"]

1. e4 {[%clk 0:03:00.7]} 1... d5 {[%clk 0:02:58.5]} 2. exd5 {[%clk 0:02:59.4]}
2... Qxd5 {[%clk 0:02:59.4]} 3. Nc3 {[%clk 0:02:59.1]} 3... Qd6 {[%clk
0:02:59.7]} 4. Nf3 {[%clk 0:02:55.6]} 4... Nf6 {[%clk 0:02:56.7]} 5. d4 {[%clk
0:02:49.7]} 5... c6 {[%clk 0:02:56.5]} 6. Ne5 {[%clk 0:02:48.1]} 6... Nbd7
{[%clk 0:02:56.2]} 7. Nc4 {[%clk 0:02:47.1]} 7... Qc7 {[%clk 0:02:55.5]} 8. g3
{[%clk 0:02:46.8]} 8... Nb6 {[%clk 0:02:54.8]} 9. Bf4 {[%clk 0:02:42.1]} 9...
Qd8 {[%clk 0:02:48.5]} 10. Ne5 {[%clk 0:02:36.8]} 10... Bf5 {[%clk 0:02:40.4]}
11. Bg2 {[%clk 0:02:34.6]} 11... e6 {[%clk 0:02:40.1]} 12. O-O {[%clk
0:02:33.4]} 12... Be7 {[%clk 0:02:38.8]} 13. g4 {[%clk 0:02:29.2]} 13... Bg6
{[%clk 0:02:38.1]} 14. h4 {[%clk 0:01:39.2]} 14... Nfd5 {[%clk 0:02:27.3]} 15.
Nxd5 {[%clk 0:01:37.7]} 15... Nxd5 {[%clk 0:02:27]} 16. Bxd5 {[%clk 0:01:36.8]}
16... Qxd5 {[%clk 0:02:24.2]} 17. h5 {[%clk 0:01:36.4]} 17... f6 {[%clk
0:02:24.4]} 18. hxg6 {[%clk 0:00:53.3]} 18... fxe5 {[%clk 0:02:24.4]} 19. dxe5
{[%clk 0:00:53.5]} 19... hxg6 {[%clk 0:02:21.2]} 20. Qxd5 {[%clk 0:00:52.9]}
20... cxd5 {[%clk 0:02:19.3]} 21. Kg2 {[%clk 0:00:53.3]} 21... Rc8 {[%clk
0:02:15.5]} 22. c3 {[%clk 0:00:53.3]} 22... Rc4 {[%clk 0:02:12]} 23. Bg3 {[%clk
0:00:41.6]} 23... Rxg4 {[%clk 0:02:09]} 24. Rh1 {[%clk 0:00:41.2]} 24... Rxh1
{[%clk 0:02:01.2]} 25. Rxh1 {[%clk 0:00:40.2]} 25... Ra4 {[%clk 0:02:01.1]} 26.
Rh8+ {[%clk 0:00:39.2]} 26... Bf8 {[%clk 0:01:59.7]} 27. a3 {[%clk 0:00:38.7]}
27... Ra6 {[%clk 0:01:57.1]} 28. Rh4 {[%clk 0:00:30.4]} 28... Rb6 {[%clk
0:01:54.3]} 29. c4 {[%clk 0:00:15.6]} 29... dxc4 {[%clk 0:01:42.8]} 30. Rxc4
{[%clk 0:00:14.9]} 30... Rxb2 {[%clk 0:01:42.8]} 31. Rc8+ {[%clk 0:00:13.5]}
31... Kf7 {[%clk 0:01:42.9]} 32. a4 {[%clk 0:00:12.6]} 32... Be7 {[%clk
0:01:32]} 33. Rc7 {[%clk 0:00:12.1]} 33... g5 {[%clk 0:01:32.3]} 34. Kf3 {[%clk
0:00:11.3]} 34... Rb4 {[%clk 0:01:32]} 35. a5 {[%clk 0:00:09.6]} 35... Ke8
{[%clk 0:01:28.7]} 36. Ke2 {[%clk 0:00:06.3]} 36... Kd8 {[%clk 0:01:26.4]} 37.
Rc2 {[%clk 0:00:04.6]} 37... Rb5 {[%clk 0:01:23.8]} 38. Ra2 {[%clk 0:00:04]}
38... Bb4 {[%clk 0:01:22.4]} 39. a6 {[%clk 0:00:04]} 39... b6 {[%clk 0:01:22.8]}
40. Kd3 {[%clk 0:00:03.8]} 40... Ra5 {[%clk 0:01:12.8]} 41. Rxa5 {[%clk
0:00:02.6]} 41... bxa5 {[%clk 0:01:13.7]} 42. f3 {[%clk 0:00:02]} 42... Bc5
{[%clk 0:01:11]} 43. Kc4 {[%clk 0:00:01.5]} 43... Be3 {[%clk 0:01:10.3]} 44. Be1
{[%clk 0:00:01.3]} 44... Kd7 {[%clk 0:01:05]} 45. Bxa5 {[%clk 0:00:01.1]} 45...
Kc6 {[%clk 0:01:05.2]} 0-1

[Event "*** SCC Grand Prix: Titled Tuesday Blitz"]
[Site "Chess.com"]
[Date "2020.06.09"]
[Round "7"]
[White "margarita_2703"]
[Black "MYMChessAcademy"]
[Result "1-0"]
[WhiteElo "2338"]
[BlackElo "2366"]
[TimeControl "180+1"]
[EndTime "10:18:19 PDT"]
[Termination "margarita_2703 won on time"]

1. Nf3 {[%clk 0:03:00.9]} 1... Nf6 {[%clk 0:02:59.5]} 2. d4 {[%clk 0:03:00.4]}
2... g6 {[%clk 0:02:57.5]} 3. c4 {[%clk 0:03:00.1]} 3... Bg7 {[%clk 0:02:58.4]}
4. Nc3 {[%clk 0:03:00]} 4... O-O {[%clk 0:02:59.3]} 5. e4 {[%clk 0:03:00]} 5...
d6 {[%clk 0:03:00.2]} 6. Be2 {[%clk 0:02:59.7]} 6... e5 {[%clk 0:03:00.7]} 7.
O-O {[%clk 0:02:59.4]} 7... Nc6 {[%clk 0:03:01.1]} 8. d5 {[%clk 0:02:59.1]} 8...
Ne7 {[%clk 0:03:01.7]} 9. b4 {[%clk 0:02:59.2]} 9... Kh8 {[%clk 0:03:01.7]} 10.
a4 {[%clk 0:02:58.6]} 10... Neg8 {[%clk 0:03:01.3]} 11. c5 {[%clk 0:02:57.2]}
11... Nh5 {[%clk 0:02:59.7]} 12. Re1 {[%clk 0:02:56.5]} 12... f5 {[%clk
0:02:58.3]} 13. Nd2 {[%clk 0:02:52.6]} 13... Nf4 {[%clk 0:02:56.9]} 14. Bf1
{[%clk 0:02:52.6]} 14... Qg5 {[%clk 0:02:45.3]} 15. Kh1 {[%clk 0:02:42.6]} 15...
Nf6 {[%clk 0:02:36.7]} 16. g3 {[%clk 0:02:32.3]} 16... Ng4 {[%clk 0:02:36.6]}
17. Qf3 {[%clk 0:02:12.3]} 17... Qh5 {[%clk 0:02:06.8]} 18. h4 {[%clk
0:02:11.6]} 18... fxe4 {[%clk 0:01:47.3]} 19. Ndxe4 {[%clk 0:02:03.9]} 19... Nh3
{[%clk 0:01:45]} 20. Qg2 {[%clk 0:01:58.5]} 20... Ngxf2+ {[%clk 0:01:08]} 21.
Nxf2 {[%clk 0:01:54.4]} 21... Rxf2 {[%clk 0:01:08.9]} 22. Qe4 {[%clk 0:01:46.6]}
22... Bg4 {[%clk 0:00:53.8]} 23. Bg2 {[%clk 0:01:38.1]} 23... Raf8 {[%clk
0:00:53.5]} 24. Re3 {[%clk 0:01:17.6]} 24... Rf1+ {[%clk 0:00:32.3]} 25. Kh2
{[%clk 0:01:17.3]} 25... Nf2 {[%clk 0:00:14.5]} 26. Qc4 {[%clk 0:01:08.8]} 26...
Nd1 {[%clk 0:00:05.6]} 27. Nxd1 {[%clk 0:01:04.7]} 27... Rxd1 {[%clk 0:00:05.2]}
28. Bb2 {[%clk 0:01:00.8]} 28... Rd2 {[%clk 0:00:04.6]} 29. Bc3 {[%clk
0:00:58.5]} 29... Rc2 {[%clk 0:00:04.5]} 30. Rg1 {[%clk 0:00:46.3]} 30... Rff2
{[%clk 0:00:04.2]} 31. Qd3 {[%clk 0:00:43.4]} 31... Bh6 {[%clk 0:00:02]} 32. Be1
{[%clk 0:00:35.3]} 32... Bxe3 {[%clk 0:00:01.1]} 33. Qxe3 {[%clk 0:00:35.8]} 1-0

[Event "*** SCC Grand Prix: Titled Tuesday Blitz"]
[Site "Chess.com"]
[Date "2020.06.09"]
[Round "7"]
[White "attack2mateU"]
[Black "NIGWAPO"]
[Result "0-1"]
[WhiteElo "2690"]
[BlackElo "2566"]
[TimeControl "180+1"]
[EndTime "10:18:22 PDT"]
[Termination "NIGWAPO won by resignation"]

1. e4 {[%clk 0:03:00.9]} 1... g5 {[%clk 0:02:58.6]} 2. d4 {[%clk 0:03:00]} 2...
d5 {[%clk 0:02:58.3]} 3. exd5 {[%clk 0:02:55.2]} 3... Qxd5 {[%clk 0:02:58]} 4.
Nc3 {[%clk 0:02:54.5]} 4... Qe6+ {[%clk 0:02:57.6]} 5. Be2 {[%clk 0:02:53.2]}
5... h6 {[%clk 0:02:58.2]} 6. Nf3 {[%clk 0:02:44.6]} 6... c6 {[%clk 0:02:58.4]}
7. O-O {[%clk 0:02:45]} 7... Bg7 {[%clk 0:02:58]} 8. Re1 {[%clk 0:02:45.1]} 8...
Nf6 {[%clk 0:02:55.6]} 9. Ne5 {[%clk 0:02:42.6]} 9... Qd6 {[%clk 0:02:55.7]} 10.
Bc4 {[%clk 0:02:35.1]} 10... O-O {[%clk 0:02:54.9]} 11. Be3 {[%clk 0:02:12.8]}
11... Nbd7 {[%clk 0:02:53.9]} 12. f4 {[%clk 0:01:19.1]} 12... Nd5 {[%clk
0:02:19.8]} 13. Bxd5 {[%clk 0:00:50]} 13... cxd5 {[%clk 0:02:18.4]} 14. Nxd7
{[%clk 0:00:49.1]} 14... Bxd7 {[%clk 0:02:18.2]} 15. fxg5 {[%clk 0:00:50]} 15...
hxg5 {[%clk 0:02:17.9]} 16. Bxg5 {[%clk 0:00:49.8]} 16... Rfe8 {[%clk
0:02:12.1]} 17. Qd2 {[%clk 0:00:36]} 17... Bf5 {[%clk 0:02:11.1]} 18. Bf4 {[%clk
0:00:30.5]} 18... Qb4 {[%clk 0:01:54.9]} 19. Be5 {[%clk 0:00:25.9]} 19... f6
{[%clk 0:01:54.6]} 20. Bf4 {[%clk 0:00:24.8]} 20... Qxb2 {[%clk 0:01:53.5]} 21.
Nxd5 {[%clk 0:00:24.2]} 21... Rad8 {[%clk 0:01:49.3]} 22. Rab1 {[%clk
0:00:13.5]} 22... Qxc2 {[%clk 0:01:48.6]} 23. Qa5 {[%clk 0:00:04.8]} 23... b6
{[%clk 0:01:44.9]} 24. Qb5 {[%clk 0:00:04.8]} 24... Bd3 {[%clk 0:01:27.5]} 25.
Ne3 {[%clk 0:00:05]} 25... Qxb1 {[%clk 0:01:19.4]} 26. Qxb1 {[%clk 0:00:03.7]}
26... Bxb1 {[%clk 0:01:19.3]} 27. Rxb1 {[%clk 0:00:04.3]} 27... Rxd4 {[%clk
0:01:19.3]} 28. Bg3 {[%clk 0:00:02.5]} 28... e6 {[%clk 0:01:17]} 29. Rc1 {[%clk
0:00:02.8]} 29... Bh6 {[%clk 0:01:15.8]} 30. Bf2 {[%clk 0:00:02.5]} 30... Rd2
{[%clk 0:01:11]} 31. Rc7 {[%clk 0:00:01.8]} 31... Bxe3 {[%clk 0:01:10.9]} 32.
Bxe3 {[%clk 0:00:02.1]} 32... Rxa2 {[%clk 0:01:11.1]} 33. h4 {[%clk 0:00:02.6]}
33... e5 {[%clk 0:01:09.7]} 34. h5 {[%clk 0:00:02.9]} 34... f5 {[%clk
0:01:09.9]} 35. Bg5 {[%clk 0:00:02.4]} 35... Rf8 {[%clk 0:01:05.3]} 36. h6
{[%clk 0:00:02.2]} 36... Rf7 {[%clk 0:01:04.9]} 37. Rc8+ {[%clk 0:00:01.6]}
37... Kh7 {[%clk 0:01:05]} 38. Kh2 {[%clk 0:00:02.5]} 38... f4 {[%clk
0:01:04.7]} 39. Kh3 {[%clk 0:00:02.6]} 39... Ra3+ {[%clk 0:01:01.1]} 40. Kh4
{[%clk 0:00:02.4]} 40... Rg3 {[%clk 0:00:58.8]} 41. Rc6 {[%clk 0:00:02.1]} 41...
Rxg2 {[%clk 0:00:57.6]} 42. Kh5 {[%clk 0:00:02.3]} 42... f3 {[%clk 0:00:54.5]}
43. Bf6 {[%clk 0:00:01.3]} 43... Rh2+ {[%clk 0:00:53.7]} 0-1

[Event "*** SCC Grand Prix: Titled Tuesday Blitz"]
[Site "Chess.com"]
[Date "2020.06.09"]
[Round "7"]
[White "Kimster98"]
[Black "Boninknights"]
[Result "0-1"]
[WhiteElo "2538"]
[BlackElo "2346"]
[TimeControl "180+1"]
[EndTime "10:18:24 PDT"]
[Termination "Boninknights won by resignation"]

1. d4 {[%clk 0:03:00.9]} 1... Nf6 {[%clk 0:02:58.8]} 2. Bf4 {[%clk 0:03:01.4]}
2... d6 {[%clk 0:02:57.7]} 3. Nc3 {[%clk 0:02:59.8]} 3... Nbd7 {[%clk
0:02:52.4]} 4. Nf3 {[%clk 0:02:58.8]} 4... c5 {[%clk 0:02:50.9]} 5. d5 {[%clk
0:02:53.2]} 5... g6 {[%clk 0:02:49.7]} 6. Qd2 {[%clk 0:02:51.7]} 6... Qa5 {[%clk
0:02:44.7]} 7. e4 {[%clk 0:02:49.1]} 7... a6 {[%clk 0:02:39.2]} 8. e5 {[%clk
0:02:34]} 8... dxe5 {[%clk 0:02:33]} 9. Nxe5 {[%clk 0:02:33]} 9... Nxe5 {[%clk
0:02:30.2]} 10. Bxe5 {[%clk 0:02:33.9]} 10... Bg7 {[%clk 0:02:28.2]} 11. d6
{[%clk 0:01:53.4]} 11... O-O {[%clk 0:01:59.2]} 12. dxe7 {[%clk 0:01:47.9]}
12... Re8 {[%clk 0:01:57.8]} 13. O-O-O {[%clk 0:01:45.2]} 13... Be6 {[%clk
0:01:43.6]} 14. Qg5 {[%clk 0:01:28.8]} 14... h6 {[%clk 0:01:31.9]} 15. Qf4
{[%clk 0:01:25.9]} 15... Nh5 {[%clk 0:01:24.9]} 16. Qe3 {[%clk 0:01:25.4]} 16...
Bxa2 {[%clk 0:00:49.8]} 17. Bxg7 {[%clk 0:01:09.2]} 17... Nxg7 {[%clk
0:00:44.3]} 18. Qxh6 {[%clk 0:00:58.1]} 18... Nf5 {[%clk 0:00:36.4]} 19. Qg5
{[%clk 0:00:50.9]} 19... Be6 {[%clk 0:00:31.5]} 20. Bd3 {[%clk 0:00:31.5]} 20...
Nxe7 {[%clk 0:00:23.4]} 21. Ne4 {[%clk 0:00:23.1]} 21... Nd5 {[%clk 0:00:21.9]}
22. Nf6+ {[%clk 0:00:21.2]} 22... Nxf6 {[%clk 0:00:20.5]} 23. Qxf6 {[%clk
0:00:22.1]} 23... Rad8 {[%clk 0:00:15.9]} 24. h4 {[%clk 0:00:18]} 24... c4
{[%clk 0:00:13.1]} 25. h5 {[%clk 0:00:04.6]} 25... cxd3 {[%clk 0:00:12.3]} 26.
hxg6 {[%clk 0:00:05]} 26... d2+ {[%clk 0:00:11.4]} 0-1

[Event "*** SCC Grand Prix: Titled Tuesday Blitz"]
[Site "Chess.com"]
[Date "2020.06.09"]
[Round "7"]
[White "Gloomy_Wanderer"]
[Black "mbojan"]
[Result "1-0"]
[WhiteElo "2792"]
[BlackElo "2640"]
[TimeControl "180+1"]
[EndTime "10:18:29 PDT"]
[Termination "Gloomy_Wanderer won by resignation"]

1. d4 {[%clk 0:03:00.9]} 1... Nf6 {[%clk 0:02:59.9]} 2. Nf3 {[%clk 0:03:00.5]}
2... g6 {[%clk 0:03:00.1]} 3. c4 {[%clk 0:03:00.5]} 3... c5 {[%clk 0:02:59.8]}
4. g3 {[%clk 0:03:00.3]} 4... Bg7 {[%clk 0:02:59.3]} 5. Bg2 {[%clk 0:03:00.5]}
5... O-O {[%clk 0:02:59.4]} 6. Nc3 {[%clk 0:02:59.1]} 6... cxd4 {[%clk
0:02:57.5]} 7. Nxd4 {[%clk 0:03:00]} 7... Nc6 {[%clk 0:02:57.6]} 8. O-O {[%clk
0:03:00.1]} 8... Nxd4 {[%clk 0:02:57.6]} 9. Qxd4 {[%clk 0:03:01]} 9... d6 {[%clk
0:02:57.8]} 10. Qd3 {[%clk 0:03:01.4]} 10... Nd7 {[%clk 0:02:47.8]} 11. b3
{[%clk 0:02:44.7]} 11... Ne5 {[%clk 0:02:43.5]} 12. Qd2 {[%clk 0:02:43.7]} 12...
Nc6 {[%clk 0:02:43.3]} 13. Bb2 {[%clk 0:02:42.3]} 13... Be6 {[%clk 0:02:39.7]}
14. Rfd1 {[%clk 0:02:41.6]} 14... Qa5 {[%clk 0:02:35.7]} 15. Rac1 {[%clk
0:02:13.2]} 15... Rfc8 {[%clk 0:02:33.6]} 16. h4 {[%clk 0:01:57.5]} 16... h5
{[%clk 0:02:33.3]} 17. Nd5 {[%clk 0:01:57.3]} 17... Qxa2 {[%clk 0:01:25.6]} 18.
Rc3 {[%clk 0:01:57.3]} 18... Bxd5 {[%clk 0:01:13]} 19. Ra1 {[%clk 0:01:40.8]}
19... Qxa1+ {[%clk 0:00:57.1]} 20. Bxa1 {[%clk 0:01:39.1]} 20... Bxg2 {[%clk
0:00:56.5]} 21. Kxg2 {[%clk 0:01:40]} 21... a5 {[%clk 0:00:51.5]} 22. Rc1 {[%clk
0:01:38.2]} 22... Bxa1 {[%clk 0:00:44.5]} 23. Rxa1 {[%clk 0:01:39.1]} 23... b6
{[%clk 0:00:44.9]} 24. Qe3 {[%clk 0:01:37.5]} 24... Rab8 {[%clk 0:00:44.5]} 25.
Rd1 {[%clk 0:01:32.7]} 25... Ne5 {[%clk 0:00:42.7]} 26. Rd5 {[%clk 0:01:31.6]}
26... Rc5 {[%clk 0:00:38.1]} 27. f4 {[%clk 0:01:26]} 27... Nc6 {[%clk
0:00:36.4]} 28. Kh3 {[%clk 0:01:12.9]} 28... Rc8 {[%clk 0:00:23.9]} 29. g4
{[%clk 0:01:05.5]} 29... hxg4+ {[%clk 0:00:23.7]} 30. Kxg4 {[%clk 0:01:06.4]}
30... e6 {[%clk 0:00:07.5]} 31. Rxd6 {[%clk 0:01:04.6]} 31... Ne7 {[%clk
0:00:08]} 32. Qd3 {[%clk 0:00:57.1]} 32... Nf5 {[%clk 0:00:03]} 33. Rd8+ {[%clk
0:00:55.1]} 33... Rxd8 {[%clk 0:00:03.6]} 34. Qxd8+ {[%clk 0:00:55.8]} 34... Kg7
{[%clk 0:00:04.5]} 35. e4 {[%clk 0:00:55.4]} 35... Nh6+ {[%clk 0:00:03.9]} 36.
Kf3 {[%clk 0:00:55.3]} 36... Rc6 {[%clk 0:00:02.8]} 37. Qd7 {[%clk 0:00:52]}
37... Rc5 {[%clk 0:00:03.2]} 38. Qd6 {[%clk 0:00:51.2]} 38... Rh5 {[%clk
0:00:03.4]} 39. Qxb6 {[%clk 0:00:49.9]} 39... Rxh4 {[%clk 0:00:03.3]} 40. c5
{[%clk 0:00:49.8]} 40... Rh3+ {[%clk 0:00:03.4]} 41. Kg2 {[%clk 0:00:50.2]}
41... Rc3 {[%clk 0:00:03.6]} 42. c6 {[%clk 0:00:50.6]} 42... Ng4 {[%clk
0:00:03.9]} 43. Qd4+ {[%clk 0:00:50.1]} 1-0

[Event "*** SCC Grand Prix: Titled Tuesday Blitz"]
[Site "Chess.com"]
[Date "2020.06.09"]
[Round "7"]
[White "Quiet_Desperation"]
[Black "tan275"]
[Result "1/2-1/2"]
[WhiteElo "1906"]
[BlackElo "2189"]
[TimeControl "180+1"]
[EndTime "10:18:29 PDT"]
[Termination "Game drawn by repetition"]

1. e4 {[%clk 0:03:00.9]} 1... c5 {[%clk 0:02:59.4]} 2. d4 {[%clk 0:03:00.9]}
2... cxd4 {[%clk 0:02:58.6]} 3. c3 {[%clk 0:03:01.8]} 3... Nf6 {[%clk
0:02:56.3]} 4. e5 {[%clk 0:03:01.7]} 4... Nd5 {[%clk 0:02:56.2]} 5. Nf3 {[%clk
0:03:02.6]} 5... e6 {[%clk 0:02:54.5]} 6. Bc4 {[%clk 0:03:02.4]} 6... d6 {[%clk
0:02:48.8]} 7. exd6 {[%clk 0:02:59.7]} 7... Bxd6 {[%clk 0:02:46.3]} 8. cxd4
{[%clk 0:03:00.2]} 8... O-O {[%clk 0:02:43.8]} 9. Bd3 {[%clk 0:02:58.6]} 9...
Bb4+ {[%clk 0:02:35.3]} 10. Bd2 {[%clk 0:02:53.9]} 10... Bxd2+ {[%clk
0:02:34.6]} 11. Nbxd2 {[%clk 0:02:53.9]} 11... Nd7 {[%clk 0:02:27.9]} 12. O-O
{[%clk 0:02:52.9]} 12... N7f6 {[%clk 0:02:27.8]} 13. Ne5 {[%clk 0:02:39]} 13...
b6 {[%clk 0:02:23.9]} 14. Rc1 {[%clk 0:02:32.4]} 14... Bb7 {[%clk 0:02:23.5]}
15. Ne4 {[%clk 0:02:32.4]} 15... Nf4 {[%clk 0:02:13.7]} 16. Nxf6+ {[%clk
0:02:17.1]} 16... Qxf6 {[%clk 0:02:10.4]} 17. f3 {[%clk 0:02:03.8]} 17... Qg5
{[%clk 0:01:54]} 18. g3 {[%clk 0:01:57.4]} 18... Nxd3 {[%clk 0:01:20.4]} 19.
Qxd3 {[%clk 0:01:56.3]} 19... Rfd8 {[%clk 0:01:20.1]} 20. Nxf7 {[%clk 0:01:43]}
20... Kxf7 {[%clk 0:01:11.6]} 21. Rc7+ {[%clk 0:01:42.5]} 21... Kg8 {[%clk
0:01:05.9]} 22. Rxb7 {[%clk 0:01:42.2]} 22... Qd5 {[%clk 0:01:01.8]} 23. Rc7
{[%clk 0:01:23.4]} 23... Qxd4+ {[%clk 0:00:54.9]} 24. Qxd4 {[%clk 0:01:23]}
24... Rxd4 {[%clk 0:00:55]} 25. Re1 {[%clk 0:01:22.5]} 25... Rd6 {[%clk
0:00:30.2]} 26. Re4 {[%clk 0:01:20.7]} 26... Rd2 {[%clk 0:00:24.2]} 27. Rg4
{[%clk 0:01:09.1]} 27... g6 {[%clk 0:00:22.7]} 28. Rgc4 {[%clk 0:00:39.8]} 28...
Rxb2 {[%clk 0:00:20.1]} 29. Rc8+ {[%clk 0:00:39.5]} 29... Rxc8 {[%clk 0:00:20]}
30. Rxc8+ {[%clk 0:00:40.3]} 30... Kg7 {[%clk 0:00:20.1]} 31. Rc7+ {[%clk
0:00:41.2]} 31... Kf6 {[%clk 0:00:20.1]} 32. Rxa7 {[%clk 0:00:42.1]} 32... h5
{[%clk 0:00:19.8]} 33. a4 {[%clk 0:00:40.4]} 33... Ke5 {[%clk 0:00:16.5]} 34.
Rg7 {[%clk 0:00:33.1]} 34... Kf5 {[%clk 0:00:15]} 35. Rf7+ {[%clk 0:00:30.7]}
35... Ke5 {[%clk 0:00:14.5]} 36. Rg7 {[%clk 0:00:28.7]} 36... Kf6 {[%clk
0:00:14.9]} 37. Rb7 {[%clk 0:00:26]} 37... Ke5 {[%clk 0:00:14.1]} 38. Rg7 {[%clk
0:00:25.3]} 1/2-1/2